Cogmind - Beta 11.1 @@@ ROGUE MODE // 2022.06.14 @ 12:11:16 Player: ChromeKnight Result: Self-destructed Performance ------------- Evolutions (3) 1500 Regions Visited (7) 1400 Robots Destroyed (16) 80 Value Destroyed (300) 300 Prototype IDs (24) 480 Alien Tech Used (0) 0 Bonus (300) 300 TOTAL SCORE: 4060 Bonus ------- Aligned with FarCom 300 Cogmind --------- Core Integrity 513/700 Matter 292/300 Energy 265/265 System Corruption 0% Temperature Cool (0) Movement Hovering (120) Ox1 Location -7/Lower Caves Parts ------- > --- POWER (1) -------- Improved Ion Engine > --- PROPULSION (2) --- Airjet > --- UTILITY (8) ------ Medium Storage Unit Advanced Weight Redist. System 0b10 Alert Chip Melee Analysis Suite Utility Shielding > --- WEAPON (2) ------- Gauss Rifle > --- INVENTORY (10) --- Microactuators Microactuators Reaction Control System Cloak of Protection Trap Reconfigurator Mace Mace Mace Mace Peak State ------------ > --- POWER ------------ Improved Ion Engine > --- PROPULSION ------- Gravmag System Gravmag System > --- UTILITY ---------- Medium Storage Unit Advanced Weight Redist. System Improved Sensor Array 0b10 Alert Chip Melee Analysis Suite Utility Shielding Trap Reconfigurator > --- WEAPON ----------- Gauss Rifle Mining Claw > --- INVENTORY -------- Airjet Microactuators Microactuators Reaction Control System Cloak of Protection Mace Mace Mace Mace [Rating: 44] Favorites ----------- Power Improved Ion Engine Engine Improved Ion Engine Propulsion Light Treads Treads Light Treads Hover Unit Gravmag System Utility Medium Storage Unit Device Advanced Weight Redist. System Storage Medium Storage Unit Processor Targeting Computer Protection Light Armor Plating Weapon Mining Claw Ballistic Gun Gauss Rifle Impact Weapon Mace Slashing Weapon Mining Claw Build | -11 -10 -10 -10 -9 -8 -7 -7 ------- Run | Scr Mat Min Exi Min Mat Fac Low Slots Evolved 6 | . . . . . 4 2 . Power . | . . . . . . . . Propulsion . | . . . . . . . . Utility 6 | . . . . . 4 2 . Weapon . | . . . . . . . . Parts Attached 40 | 6 5 3 3 . 13 10 . Power 4 | 1 . 1 . . 1 1 . Engine 4 | 1 . 1 . . 1 1 . Core . | . . . . . . . . Reactor . | . . . . . . . . Propulsion 15 | 2 . . 2 . 6 5 . Treads 10 | 2 . . 2 . 6 . . Leg . | . . . . . . . . Wheel . | . . . . . . . . Hover 5 | . . . . . . 5 . Flight . | . . . . . . . . Utility 13 | 1 1 1 1 . 5 4 . Device 4 | . . . . . 2 2 . Storage 2 | 1 1 . . . . . . Processor 3 | . . . . . 1 2 . Hackware . | . . . . . . . . Protection 4 | . . 1 1 . 2 . . Artifact . | . . . . . . . . Weapon 8 | 2 4 1 . . 1 . . Energy Gun . | . . . . . . . . Energy Cannon . | . . . . . . . . Ballistic Gun 3 | 2 . . . . 1 . . Ballistic Cannon . | . . . . . . . . Launcher . | . . . . . . . . Special Weapon . | . . . . . . . . Impact Weapon 2 | . 2 . . . . . . Slashing Weapon 3 | . 2 1 . . . . . Piercing Weapon . | . . . . . . . . Special Melee Weapon . | . . . . . . . . Unidentified Prototypes 1 | . . . . . . 1 . Parts Lost 7 | . . . . 1 1 3 2 Power . | . . . . . . . . Propulsion 2 | . . . . . . 1 1 Utility 3 | . . . . . 1 2 . Weapon 2 | . . . . 1 . . 1 Highest Loss Streak 2 | . . . . 1 1 2 2 To Critical Strikes . | . . . . . . . . Average Slot Usage (%) 87 | . 85 100 100 93 81 77 73 Engine 11 | . 14 14 14 14 9 7 7 Treads 21 | . 28 28 28 28 18 9 . Hover 1 | . . . . . . 5 13 Device 3 | . . . . . 6 8 7 Storage 11 | . 14 20 14 14 9 7 7 Processor 3 | . . . . . 6 10 15 Protection 12 | . . 8 14 14 21 11 7 Ballistic Gun 2 | . 4 . . . 2 7 7 Impact Weapon 2 | . 16 . . . . . . Slashing Weapon 15 | . 6 28 28 21 9 7 5 Naked Turns . | . . . . . . . . Heaviest Build 27 | 12 24 24 24 24 27 27 24 Greatest Support 49 | 40 40 40 40 40 49 49 26 Greatest Overweight (x) 1 | . . . . . . 1 . Average Overweight (x) . | . . . . . . . . Largest Inventory Capacity 10 | 8 10 10 10 10 10 10 10 Average Capacity 9 | 6 8 10 10 10 10 10 10 Most Carried 10 | 1 8 10 10 10 10 10 9 Average Carried 9 | . 6 9 9 10 9 9 9 Final Capacity 10 | 8 10 10 10 10 10 10 10 Final Carried 10 | 1 8 10 10 10 9 9 9 Class Distribution -------------------- 100% | Mutant Dominant Class ---------------- Mutant | -10/Materials Mutant | -10/Mines Mutant | -10/Exiles Mutant | -9/Mines Mutant | -8/Materials Mutant | -7/Factory Mutant | -7/Lower Caves Resources | -11 -10 -10 -10 -9 -8 -7 -7 ----------- Run | Scr Mat Min Exi Min Mat Fac Low Matter Collected 610 | 159 87 94 . 40 125 105 . Remotely . | . . . . . . . . Salvage Created 541 | . 87 139 . 41 174 100 . Parts 33 | . 3 5 . 7 11 7 . Haulers Intercepted 1 | . 1 . . . . . . Recyclers Shooed 1 | . . . . . . 1 . Parts Field Recycled . | . . . . . . . . Retrieved Matter . | . . . . . . . . Parts Self-Destructed . | . . . . . . . . Prevented . | . . . . . . . . Kills | -11 -10 -10 -10 -9 -8 -7 -7 ------- Run | Scr Mat Min Exi Min Mat Fac Low Combat Hostiles Destroyed 10 | . 1 4 . 3 2 . . Melee 9 | . . 4 . 3 2 . . Classes Destroyed 7 | . 2 2 . . 1 2 . Worker 3 | . . . . . . 3 . Hauler 1 | . 1 . . . . . . Recycler 1 | . . . . . 1 . . Watcher 1 | . . . . . . 1 . Swarmer 5 | . . 2 . 3 . . . Grunt 1 | . 1 . . . . . . Sentry 4 | . . 2 . . 2 . . Best Kill Streak 2 | . 1 2 . 2 1 2 . Combat Bots Only 2 | . 1 2 . 2 1 . . Max Kills in Single Turn 1 | . 1 1 . 1 1 1 . Gunslinging . | . . . . . . . . Exploded . | . . . . . . . . Melee 1 | . . 1 . 1 1 . . Uniques/NPCs Destroyed . | . . . . . . . . Combat | -11 -10 -10 -10 -9 -8 -7 -7 -------- Run | Scr Mat Min Exi Min Mat Fac Low Damage Taken 1641 | . 33 318 . 300 252 601 137 Core 321 | . . 65 . 58 11 135 52 Absorbed by Shields . | . . . . . . . . Redirected to Shielding 40 | . . . . . . 31 9 Core Remaining (%) 82 | 100 . . . 50 98 . . Volleys Fired 8 | . . . . . . 5 3 Largest 1 | . . . . . . 1 1 Hottest 28 | . . . . . . 28 28 Shots Fired 8 | . . . . . . 5 3 Gun 8 | . . . . . . 5 3 Cannon . | . . . . . . . . Launcher . | . . . . . . . . Special . | . . . . . . . . Kinetic 8 | . . . . . . 5 3 Thermal . | . . . . . . . . Explosive . | . . . . . . . . Electromagnetic . | . . . . . . . . Robot Hit Streak 1 | . . . . . . 1 1 Robot Miss Streak 4 | . . . . . . 3 4 Penetration Max 1 | . . . . . . . 1 Secondary Targets . | . . . . . . . . Shots Hit Robots 31 | . 5 6 . 4 9 6 1 Core Hits 16 | . 1 4 . 3 4 3 1 Critical Kills . | . . . . . . . . Critical Parts Destroyed 1 | . 1 . . . . . . Critical Strikes 1 | . 1 . . . . . . Smash 1 | . 1 . . . . . . Melee Attacks 55 | . 6 11 . 14 18 6 . Impact 5 | . 5 . . . . . . Slashing 50 | . 1 11 . 14 18 6 . Piercing . | . . . . . . . . Sneak Attacks 8 | . 1 . . 1 2 4 . Combat Hostiles . | . . . . . . . . Follow-up Attacks 3 | . . 3 . . . . . Damage Inflicted 893 | . 151 138 . 114 189 248 53 Guns 74 | . . . . . . 21 53 Cannons . | . . . . . . . . Explosions . | . . . . . . . . Melee 819 | . 151 138 . 114 189 227 . Ramming . | . . . . . . . . Kinetic 74 | . . . . . . 21 53 Thermal . | . . . . . . . . Explosive . | . . . . . . . . Electromagnetic . | . . . . . . . . Impact 129 | . 129 . . . . . . Slashing 690 | . 22 138 . 114 189 227 . Piercing . | . . . . . . . . Highest Corruption 1 | . 1 1 1 1 . . . Average Corruption 1 | . 1 1 1 1 . . . Corruption Purged . | . . . . . . . . Corruption Blocked . | . . . . . . . . Effects 10 | . 1 2 2 5 . . . Message Errors 3 | . . 1 1 1 . . . Matter Fused 2 | . . . 1 1 . . . Heat Flow Errors 2 | . . . . 2 . . . Energy Discharges 1 | . . . . 1 . . . Parts Rejected 1 | . . 1 . . . . . Data Loss (minor) 1 | . 1 . . . . . . Overload Shots . | . . . . . . . . Overflow Damage 68 | . 29 3 . 7 . 29 . Projectiles . | . . . . . . . . Explosions . | . . . . . . . . Melee 68 | . 29 3 . 7 . 29 . Knockbacks . | . . . . . . . . Impact . | . . . . . . . . Kinetic . | . . . . . . . . Secondary . | . . . . . . . . Self-Inflicted Damage . | . . . . . . . . Shots . | . . . . . . . . Rammed . | . . . . . . . . Targets Rammed . | . . . . . . . . Kicked . | . . . . . . . . Crushed . | . . . . . . . . Highest Temperature 449 | . . . . 89 . 449 . Average Temperature 124 | . . . . 47 . 166 . Received Heat Transfer 354 | . 18 9 . . . 327 . Effects 2 | . . . . . . 2 . Shutdowns 1 | . . . . . . 1 . Short Circuit 1 | . . . . . . 1 . Siege Activations . | . . . . . . . . Robots Corrupted . | . . . . . . . . Combat Hostiles . | . . . . . . . . Parts Fried 1 | . 1 . . . . . . Impact Corruptions 2 | . 2 . . . . . . Robots Melted . | . . . . . . . . Combat Hostiles . | . . . . . . . . Parts Melted . | . . . . . . . . Heat Transferred . | . . . . . . . . Parts Sabotaged . | . . . . . . . . Parts Stolen . | . . . . . . . . Parts Stripped . | . . . . . . . . Power Chain Reactions . | . . . . . . . . Missiles Intercepted . | . . . . . . . . Alert | -11 -10 -10 -10 -9 -8 -7 -7 ------- Run | Scr Mat Min Exi Min Mat Fac Low Peak Influence 296 | . 42 105 . 60 115 296 . Initial 9 | . . . . . . 9 . Average 38 | . 14 80 . 25 36 59 . Maximum Alert Level 1 | . . . . . . 1 . Low Security (%) 97 | 100 100 100 . 100 100 90 . Level 1 2 | . . . . . . 9 . Level 2 . | . . . . . . . . Level 3 . | . . . . . . . . Level 4 . | . . . . . . . . Level 5 . | . . . . . . . . High Security . | . . . . . . . . Max Security . | . . . . . . . . Squads Dispatched 4 | . 2 . . . 1 1 . Investigation 2 | . 1 . . . 1 . . Extermination . | . . . . . . . . Reinforcement 2 | . 1 . . . . 1 . Assault . | . . . . . . . . Garrison . | . . . . . . . . Intercept . | . . . . . . . . Searches Triggered . | . . . . . . . . Construction Impeded . | . . . . . . . . Haulers Reinforced . | . . . . . . . . Active Scanning Responses . | . . . . . . . . Cargo Convoy Interrupts . | . . . . . . . . Stealth | -11 -10 -10 -10 -9 -8 -7 -7 --------- Run | Scr Mat Min Exi Min Mat Fac Low Distress Signals 1 | . 1 . . . . . . Communications Jammed . | . . . . . . . . Distress Signals . | . . . . . . . . Times Spotted 57 | . 2 19 . 3 5 24 4 Peak Tracking Total 20 | . 1 20 . 2 1 9 4 Tactical Retreats 7 | . . 1 . . . 6 . Traps | -11 -10 -10 -10 -9 -8 -7 -7 ------- Run | Scr Mat Min Exi Min Mat Fac Low Traps Triggered 2 | . 1 . . . 1 . . Indirectly . | . . . . . . . . Trap Hack Attempts . | . . . . . . . . Triggered . | . . . . . . . . Disarmed . | . . . . . . . . Reprogrammed . | . . . . . . . . Reused . | . . . . . . . . Traps Reconfigurated 1 | . . . . . . 1 . Traps Extracted . | . . . . . . . . Installed . | . . . . . . . . Triggered . | . . . . . . . . Machines | -11 -10 -10 -10 -9 -8 -7 -7 ---------- Run | Scr Mat Min Exi Min Mat Fac Low Machines Disabled . | . . . . . . . . Max in Single Turn . | . . . . . . . . Machines Sabotaged . | . . . . . . . . Garrisons Compromised . | . . . . . . . . Overloaded Fab Kills . | . . . . . . . . Hacking | -11 -10 -10 -10 -9 -8 -7 -7 --------- Run | Scr Mat Min Exi Min Mat Fac Low Machines Accessed 3 | . . . 1 . 1 1 . Terminals 1 | . . . . . 1 . . Fabricators . | . . . . . . . . Repair Stations . | . . . . . . . . Recycling Units . | . . . . . . . . Scanalyzers . | . . . . . . . . Garrison Access 1 | . . . . . . 1 . Total Hacks 6 | . . . 1 . 3 2 . Successful 3 | . . . 1 . 2 . . Failed 3 | . . . . . 1 2 . Catastrophic 1 | . . . . . . 1 . Database Lockouts . | . . . . . . . . Manual 4 | . . . 1 . 3 . . Terminals 3 | . . . . . 3 . . Fabricators . | . . . . . . . . Repair Stations . | . . . . . . . . Recycling Units . | . . . . . . . . Scanalyzers . | . . . . . . . . Garrison Access 2 | . . . . . . 2 . Terminal Hacks 1 | . . . 1 . . . . EX-Prototype ID Bank 1 | . . . 1 . . . . Fabricator Hacks . | . . . . . . . . Repair Station Hacks . | . . . . . . . . Recycling Unit Hacks . | . . . . . . . . Scanalyzer . | . . . . . . . . Garrison Access Hacks . | . . . . . . . . Unauthorized Hacks 2 | . . . . . 2 . . Terminals 2 | . . . . . 2 . . Botnet 1 | . . . . . 1 . . Operators 1 | . . . . . 1 . . Fabricators . | . . . . . . . . Repair Stations . | . . . . . . . . Recycling Units . | . . . . . . . . Scanalyzers . | . . . . . . . . Garrison Access . | . . . . . . . . Data Cores Recovered . | . . . . . . . . Used . | . . . . . . . . Hacking Detections 2 | . . . . . 1 1 . Full Trace Events . | . . . . . . . . Feedback Events . | . . . . . . . . Feedback Blocked . | . . . . . . . . Robot Schematics Acquired . | . . . . . . . . Robots Built . | . . . . . . . . Authchips . | . . . . . . . . Time . | . . . . . . . . Total Robot Build Rating . | . . . . . . . . Part Schematics Acquired . | . . . . . . . . Parts Built . | . . . . . . . . Authchips . | . . . . . . . . Time . | . . . . . . . . Total Part Build Rating . | . . . . . . . . Parts Repaired . | . . . . . . . . Time . | . . . . . . . . Parts Recycled . | . . . . . . . . Recycled Matter . | . . . . . . . . Retrieved Matter . | . . . . . . . . Retrieved Components . | . . . . . . . . Parts Scanalyzed . | . . . . . . . . Part Schematics Acquired . | . . . . . . . . Parts Damaged . | . . . . . . . . Bothacking | -11 -10 -10 -10 -9 -8 -7 -7 ------------ Run | Scr Mat Min Exi Min Mat Fac Low Used RIF Installer . | . . . . . . . . Robots Hacked . | . . . . . . . . Non-combat . | . . . . . . . . Combat . | . . . . . . . . Robot Hacks Applied . | . . . . . . . . Relay Couplers Released . | . . . . . . . . Fabnet Peak Effective % . | . . . . . . . . Robots Rewired . | . . . . . . . . Allies Hacked . | . . . . . . . . Hacks Repelled . | . . . . . . . . Allies | -11 -10 -10 -10 -9 -8 -7 -7 -------- Run | Scr Mat Min Exi Min Mat Fac Low Total Allies . | . . . . . . . . Largest Group . | . . . . . . . . Highest-Rated Group . | . . . . . . . . Highest-Rated Ally . | . . . . . . . . Total Orders . | . . . . . . . . Ally Attacks . | . . . . . . . . Total Damage . | . . . . . . . . Kills . | . . . . . . . . Allies Corrupted . | . . . . . . . . Allies Melted . | . . . . . . . . Intel | -11 -10 -10 -10 -9 -8 -7 -7 ------- Run | Scr Mat Min Exi Min Mat Fac Low Robot Analysis Total . | . . . . . . . . Derelict Logs Recovered 1 | . . . . 1 . . . Drone Launches . | . . . . . . . . Drone Recoveries . | . . . . . . . . Exploration | -11 -10 -10 -10 -9 -8 -7 -7 ------------- Run | Scr Mat Min Exi Min Mat Fac Low Turns Passed 3420 | 75 459 277 380 805 687 678 59 Spaces Moved 1975 | 49 255 149 232 334 250 614 92 Core 11 | 11 . . . . . . . Treads 1492 | 38 255 149 232 334 250 234 . Legs . | . . . . . . . . Wheels . | . . . . . . . . Hover 472 | . . . . . . 380 92 Flight . | . . . . . . . . Fastest Speed 50 | 50 160 160 160 160 160 56 56 Average Speed 136 | 135 160 160 160 160 162 99 56 Slowest Speed 170 | 160 160 160 160 160 170 170 56 Overloaded Moves . | . . . . . . . . Propulsion Burnouts . | . . . . . . . . Robots Hopped . | . . . . . . . . Cave-ins Triggered . | . . . . . . . . Exploration Rate (%) 36 | 4 42 26 61 94 26 22 14 Regions Visited 7 Branch Regions 4 Pre-discovered Areas . | . . . . . . . . Known Exits Taken 1 | . . . . 1 . . . Unknown Exits Taken 6 | 1 1 1 1 . 1 1 . Scrap Searched . | . . . . . . . . Spaces Dug 4 | . . . . . 4 . . Terrain Destroyed 4 | . . . . . 4 . . Melee 4 | . . . . . 4 . . Projectile . | . . . . . . . . AOE . | . . . . . . . . Terrain Rammed . | . . . . . . . . Walls Destroyed . | . . . . . . . . Machines Disabled . | . . . . . . . . Actions | -11 -10 -10 -10 -9 -8 -7 -7 --------- Run | Scr Mat Min Exi Min Mat Fac Low Total 2597 | 55 298 170 241 577 497 663 96 Wait 471 | . 8 6 1 230 207 18 1 Move 1968 | 48 254 148 231 333 249 613 92 Hop . | . . . . . . . . Pick Up 28 | 1 15 3 3 . 2 4 . Fast Attach 18 | 6 3 1 . . 3 5 . Attach 8 | . . 1 . . 2 5 . Detach 1 | . . . . . . 1 . Swap 14 | . 2 1 3 . 8 . . Drop 29 | . 10 2 3 . 8 6 . Fire 8 | . . . . . . 5 3 Melee 52 | . 6 8 . 14 18 6 . Ram . | . . . . . . . . Kick . | . . . . . . . . Crush . | . . . . . . . . Escape Stasis . | . . . . . . . . Rewire . | . . . . . . . . Trap . | . . . . . . . . Miscellaneous . | . . . . . . . . Route ------- -11/Scrapyard -10/Materials (discovered 2 exits: [*Mat] / [*Min]) -10/Mines -10/Exiles -9/Mines (discovered 2 exits: *Mat x2) -8/Materials -7/Factory -7/Lower Caves History --------- Turn | Location | Event 23 | -11/Scrapyard | Discovered new exit (range 15) 76 | -11/Scrapyard | Entered Materials 319 | -10/Materials | Build established: Mutant 452 | -10/Materials | Discovered new exit (range 16) 511 | -10/Materials | Discovered new exit (range 7) 535 | -10/Materials | Entered Mines 725 | -10/Mines | Deemed a non-threat by the Exiles lab entrance 765 | -10/Mines | Assembled infested the area 770 | -10/Mines | Assisted by a Guerilla fighting off Assembled 805 | -10/Mines | Discovered new exit (range 5) 812 | -10/Mines | Entered Exiles 852 | -10/Exiles | Met 8R-AWN 878 | -10/Exiles | Met EX-HEX 928 | -10/Exiles | Met EX-BIN 944 | -10/Exiles | Aligned with FarCom system 945 | -10/Exiles | Given EX-Vault access code 996 | -10/Exiles | Opened EX-Vault 1008 | -10/Exiles | Found Trap Reconfigurator 1012 | -10/Exiles | Found 0b10 Alert Chip 1018 | -10/Exiles | Found Cloak of Protection 1051 | -10/Exiles | Warned to stay clear of 0b10 Research branches 1104 | -10/Exiles | Met EX-DEC 1170 | -10/Exiles | Discovered new exit (range 15) 1192 | -10/Exiles | Stole three prototypes: Trap Reconfigurator, 0b10 Alert Chip, Cloak of Protection 1192 | -10/Exiles | Entered Mines 1213 | -9/Mines | Identified exit to Materials 1842 | -9/Mines | Discovered exit to Materials (range 9) 1997 | -9/Mines | Entered Materials 1997 | -8/Materials | Evolved 4 slots: Utility x4 2577 | -8/Materials | Discovered new exit (range 10) 2684 | -8/Materials | Entered Factory 2684 | -7/Factory | Evolved 2 slots: Utility x2 2686 | -7/Factory | FarCom data flow suspended 3347 | -7/Factory | Discovered new exit (range 15) 3362 | -7/Factory | Entered Lower Caves 3421 | -7/Lower Caves | Self-destructed Last Messages --------------- 03328_ R-06 Scavenger destroyed. 03328_ Gravmag System destroyed. 03331_ Slug penetrates Wall. 03336_ K-01 Serf collects debris. 03338_ Sneak attack on K-01 Serf. 03338_ Destroyed Lgt. Ion Engine. 03338_ K-01 Serf destroyed. 03341_ Acquired 18 matter. 03344_ Sneak attack on K-01 Serf. 03344_ K-01 Serf destroyed. 03347_ Acquired 28 matter. 03347_ EXIT=FOUND 03349_ Extracted 5 matter. LOCATION=UNKNOWN GOAL=ESCAPE 03415_ Mining Claw destroyed. 03415_ Slug penetrates Wall. 03417_ Gravmag System destroyed. 03417_ Slug penetrates S-27 Virus. 03419_ Slug penetrates Wall. Map ----- +----------------------------------------------------+ | ????????????????????????????????????????????# | | ????????????????????????????????????????????# | | ????????????????????????????????????????????# | | ???????????????????????####?####???####?????# # | | ?????????????????##???## ### ##### ###???# ## | | ???????????????## ##??# ## ##### | | ??????????????## #??# #?# | | ?????????????## #??# #?### ## | | ?????????????# #???# ##### ## ########? | | ?????????????# #????# ## ##???????? | | ????????????## ##????## # ##????????? | | ???????????## #####??# ######## #?????????? | | ???????????# ## #?## #??????## ????????? | | ???????????# ### ##??????# ???????? | | ???????????## ## #####?? #??????? | | ????????????#### #? ##??????? | | ???????????????## ## #???????? | | ????????????????# ## ##???????? | | ????????????????# ## ## ##### #????????? | | ????????????????# ### #### #???# ????????? | | ????????????????## #?####?## #??? ????????? | | ?????????????????########## #???? ?????????? | | ???????????????????## s #??????????????????? | | ??????????????????## s #??????????????????? | | ???????????????#### ss #??????????????????? | | ??????????????## ##@ #??????????????????? | | ??????????????# #### #??????????????????? | | ??????????????# ##??### ##??????????????????? | | ??????????????# ??????###???????????????????? | | ?????????????# ?????????????????????????????? | | ???????????# ?????????????????????????????? | | ?????????? ??????????????????????????????? | | ???????? ## ??????????????????????????????? | | ???????? ??##???????????????????????????????? | | ????????? ????????????????????????????????????? | | ????????? ?????????????????????????????????????? | | ?????????? ??????????????????????????????????????? | | ?????????????????????????????????????????????????? | | ?????????????????????????????????????????????????? | | ?????????????????????????????????????????????????? | | ?????????????????????????????????????????????????? | | ?????????????????????????????????????????????????? | | ?????????????????????????????????????????????????? | | ?????????????????????????????????????????????????? | | ?????????????????????????????????????????????????? | | ?????????????????????????????????????????????????? | | ?????????????????????????????????????????????????? | | ?????????????????????????????????????????????????? | | ?????????????????????????????????????????????????? | | ?????????????????????????????????????????????????? | +----------------------------------------------------+ Best States ------------- Heat Dissipation 34 Energy Generation 12 Energy Capacity 265 Matter Stores 300 Matter Capacity 300 Sight Range 16 Robot Scan Range 15 Terrain Scan Density 10 Additional Mass Support 9 Armor Coverage 300 Resistance: EM 15 Utility Shielding 33 Evasion (%) 53 Targeting Accuracy 5 Melee Accuracy 5 Recoil Reduction 2 Item Schematics ----------------- None Robot Schematics ------------------ None Fabricated ------------ Nothing Alien Tech Used ----------------- None Achievements -------------- None Challenges ------------ None Game ------ Seed LaserGravitonKatana Manual? 0 Play Time 00:15:40 Cumulative 330.7 hours Start 2022.06.14 @ 11:50:02 End 2022.06.14 @ 12:11:16 Sessions 1 Manual Loads 0 Difficulty Rogue Special Mode None Game No. 586 Rogue 431 Adventurer 148 Explorer 7 Win Type - Total 11 Types 9/0/1/1/0/0/0/0/0 Lore% 74 Gallery% 87 Achievement% 67 Wizard Run 0 Options --------- ASCII 0 Keyboard 0 Movement Numpad Keybinds 0 Fullscreen 1 Font 18/SmallcapsGlow Map View 76x50 Tactical HUD 1 Map Filters NONE Filters NONE Steam 1 RUN: 94ce9fa8-99f7-49ca-adfc-001d1644e7b2